Cogmind - Beta 10.2 @@@ ROGUE MODE // 2022.02.28 @ 20:06:54 Player: mogwok Result: Destroyed by D-53 Grenadier with Mini Grenade Launcher Performance ------------- Evolutions (0) 0 Regions Visited (4) 800 Robots Destroyed (7) 35 Value Destroyed (133) 133 Prototype IDs (25) 500 Alien Tech Used (0) 0 Bonus (300) 300 TOTAL SCORE: 1768 Bonus ------- Aligned with FarCom 300 Cogmind --------- Core Integrity 0/250 Matter 77/300 Energy 49/100 System Corruption 0% Temperature Cool (467) Movement Walking (120) Location -9/Mines Parts ------- > --- POWER (1) -------- (None) > --- PROPULSION (2) --- Aluminum Leg > --- UTILITY (2) ------ Lightpack 2.0 > --- WEAPON (2) ------- Assault Rifle Longsword +1 > --- INVENTORY (24) --- Aluminum Leg Compact Wheel Medium Storage Unit Sensor Array Signal Interpreter Firepult Assault Rifle Light Assault Rifle Datajack Peak State ------------ > --- POWER ------------ Ion Engine > --- PROPULSION ------- Wheel Compact Wheel > --- UTILITY ---------- Lightpack 2.0 > --- WEAPON ----------- Firepult > --- INVENTORY -------- Ion Engine Signal Interpreter Light Assault Rifle Longsword +1 [Rating: 44] Favorites ----------- Power Ion Engine Engine Ion Engine Propulsion Wheel Leg Aluminum Leg Wheel Wheel Utility Sensor Array Device Sensor Array Storage Humpback Weapon Assault Rifle Energy Cannon Firepult Ballistic Gun Assault Rifle Slashing Weapon Longsword +1 Build | -11 -10 -10 -10 -9 ------- Run | Scr Mat Min Exi Min Slots Evolved . | . . . . . Power . | . . . . . Propulsion . | . . . . . Utility . | . . . . . Weapon . | . . . . . Parts Attached 16 | 6 1 . 4 5 Power 2 | 1 . . . 1 Engine 2 | 1 . . . 1 Core . | . . . . . Reactor . | . . . . . Propulsion 4 | 2 . . . 2 Treads . | . . . . . Leg 1 | . . . . 1 Wheel 3 | 2 . . . 1 Hover . | . . . . . Flight . | . . . . . Utility 5 | 1 1 . 3 . Device 1 | . 1 . . . Storage 4 | 1 . . 3 . Processor . | . . . . . Hackware . | . . . . . Protection . | . . . . . Artifact . | . . . . . Weapon 5 | 2 . . 1 2 Energy Gun . | . . . . . Energy Cannon 1 | . . . 1 . Ballistic Gun 3 | 2 . . . 1 Ballistic Cannon . | . . . . . Launcher . | . . . . . Special Weapon . | . . . . . Impact Weapon . | . . . . . Slashing Weapon 1 | . . . . 1 Piercing Weapon . | . . . . . Special Melee Weapon . | . . . . . Unidentified Prototypes 2 | . . . 2 . Parts Lost 3 | . . . . 3 Power 2 | . . . . 2 Propulsion 1 | . . . . 1 Utility . | . . . . . Weapon . | . . . . . Highest Loss Streak 3 | . . . . 3 Average Slot Usage (%) 89 | . 88 100 88 71 Engine 14 | . 14 14 14 14 Wheel 27 | . 28 28 28 14 Device 5 | . 3 14 4 . Storage 13 | . 14 14 13 14 Energy Cannon 1 | . . . 2 9 Ballistic Gun 24 | . 28 28 24 4 Naked Turns . | . . . . . Heaviest Build 107 | 13 14 14 107 32 Greatest Support 26 | 26 26 26 26 26 Greatest Overweight (x) 4 | 1 . . 4 3 Average Overweight (x) 1 | . . . 1 2 Largest Inventory Capacity 24 | 6 6 6 24 24 Average Capacity 14 | 5 6 6 17 24 Most Carried 11 | 5 6 6 11 11 Average Carried 6 | 2 5 6 7 10 Final Capacity 24 | 6 6 6 24 24 Final Carried 11 | 4 6 6 11 10 Class Distribution -------------------- 52% | Mutant 47% | Hauler-Mutant Dominant Class ---------------- Mutant | -10/Materials Mutant | -10/Mines Hauler-Mutant | -10/Exiles Hauler-Mutant | -9/Mines Resources | -11 -10 -10 -10 -9 ----------- Run | Scr Mat Min Exi Min Matter Collected 382 | 216 156 . 10 . Remotely . | . . . . . Salvage Created 386 | . 140 . . 246 Parts 8 | . 8 . . . Haulers Intercepted . | . . . . . Recyclers Shooed 4 | . 4 . . . Parts Field Recycled . | . . . . . Retrieved Matter . | . . . . . Parts Self-Destructed . | . . . . . Prevented . | . . . . . Kills | -11 -10 -10 -10 -9 ------- Run | Scr Mat Min Exi Min Combat Hostiles Destroyed 15 | . 3 . . 12 Melee 1 | . . . . 1 Guns 3 | . 3 . . . Cannons 1 | . . . . 1 AOE 9 | . . . . 9 Classes Destroyed 5 | . 3 . . 2 Recycler 1 | . 1 . . . Watcher 1 | . 1 . . . Swarmer 3 | . 3 . . . Grunt 2 | . . . . 2 Assembled 10 | . . . . 10 Best Kill Streak 12 | . 3 . . 12 Combat Bots Only 12 | . 3 . . 12 Max Kills in Single Turn 6 | . 1 . . 6 Gunslinging . | . . . . . Exploded 6 | . . . . 6 Melee 1 | . . . . 1 Uniques/NPCs Destroyed . | . . . . . Combat | -11 -10 -10 -10 -9 -------- Run | Scr Mat Min Exi Min Damage Taken 809 | . 52 . . 757 Core 280 | . . . . 280 Absorbed by Shields . | . . . . . Core Remaining (%) 100 | 100 . . . . Volleys Fired 23 | . 17 . . 6 Largest 2 | . 2 . . 1 Hottest 250 | . 40 . . 250 Shots Fired 40 | . 34 . . 6 Gun 36 | . 34 . . 2 Cannon 4 | . . . . 4 Launcher . | . . . . . Special . | . . . . . Kinetic 36 | . 34 . . 2 Thermal 4 | . . . . 4 Explosive . | . . . . . Electromagnetic . | . . . . . Robot Hit Streak 4 | . 4 . . 4 Robot Miss Streak 7 | . 3 . . 7 Penetration Max . | . . . . . Secondary Targets 1 | . 1 . . . Max Gunslinging Chain 1 | . 1 . . . Shots Hit Robots 26 | . 20 . . 6 Core Hits 34 | . 7 . . 27 Critical Hits 1 | . . . . 1 Critical Kills . | . . . . . Critical Parts Destroyed 1 | . . . . 1 Melee Attacks 4 | . . . . 4 Impact . | . . . . . Slashing 4 | . . . . 4 Piercing . | . . . . . Sneak Attacks . | . . . . . Combat Hostiles . | . . . . . Follow-up Attacks . | . . . . . Damage Inflicted 1149 | . 223 . . 926 Guns 223 | . 223 . . . Cannons 89 | . . . . 89 Explosions 669 | . . . . 669 Melee 168 | . . . . 168 Ramming . | . . . . . Kinetic 223 | . 223 . . . Thermal 758 | . . . . 758 Explosive . | . . . . . Electromagnetic . | . . . . . Impact . | . . . . . Slashing 168 | . . . . 168 Piercing . | . . . . . Highest Corruption . | . . . . . Average Corruption . | . . . . . Corruption Purged . | . . . . . Overload Shots . | . . . . . Overflow Damage 43 | . . . . 43 Projectiles . | . . . . . Explosions 7 | . . . . 7 Melee 36 | . . . . 36 Knockbacks . | . . . . . Impact . | . . . . . Kinetic . | . . . . . Secondary . | . . . . . Self-Inflicted Damage . | . . . . . Shots . | . . . . . Rammed . | . . . . . Targets Rammed . | . . . . . Kicked . | . . . . . Crushed . | . . . . . Highest Temperature 888 | . . . . 888 Average Temperature 609 | . . . . 609 Received Heat Transfer 69 | . . . . 69 Effects 16 | . . . . 16 Energy Bleed 2 | . . . . 2 Interference 1 | . . . . 1 Matter Decay 4 | . . . . 4 Short Circuit 3 | . . . . 3 Damage (minor) 3 | . . . . 3 Damage (major) 2 | . . . . 2 Damage (core) 1 | . . . . 1 Siege Activations . | . . . . . Robots Corrupted . | . . . . . Combat Hostiles . | . . . . . Parts Fried . | . . . . . Impact Corruptions . | . . . . . Robots Melted 1 | . . . . 1 Combat Hostiles 1 | . . . . 1 Parts Melted 8 | . . . . 8 Heat Transferred 4800 | . . . . 4800 Parts Sabotaged . | . . . . . Parts Stolen . | . . . . . Parts Stripped . | . . . . . Power Chain Reactions . | . . . . . Missiles Intercepted . | . . . . . Alert | -11 -10 -10 -10 -9 ------- Run | Scr Mat Min Exi Min Peak Influence 122 | . 122 47 . 65 Initial 47 | . . 47 . . Average 54 | . 77 47 . 50 Maximum Alert Level . | . . . . . Low Security (%) 100 | 100 100 100 . 100 Level 1 . | . . . . . Level 2 . | . . . . . Level 3 . | . . . . . Level 4 . | . . . . . Level 5 . | . . . . . High Security . | . . . . . Max Security . | . . . . . Squads Dispatched 1 | . 1 . . . Investigation . | . . . . . Extermination . | . . . . . Reinforcement 1 | . 1 . . . Assault . | . . . . . Garrison . | . . . . . Intercept . | . . . . . Construction Impeded . | . . . . . Haulers Reinforced . | . . . . . Stealth | -11 -10 -10 -10 -9 --------- Run | Scr Mat Min Exi Min Distress Signals . | . . . . . Communications Jammed . | . . . . . Distress Signals . | . . . . . Times Spotted 28 | . 6 . . 22 Peak Tracking Total 19 | . 4 . . 19 Tactical Retreats 2 | . 1 . . 1 Traps | -11 -10 -10 -10 -9 ------- Run | Scr Mat Min Exi Min Traps Triggered . | . . . . . Indirectly . | . . . . . Trap Hack Attempts . | . . . . . Triggered . | . . . . . Disarmed . | . . . . . Reprogrammed . | . . . . . Reused . | . . . . . Traps Extracted . | . . . . . Installed . | . . . . . Triggered . | . . . . . Machines | -11 -10 -10 -10 -9 ---------- Run | Scr Mat Min Exi Min Machines Disabled . | . . . . . Max in Single Turn . | . . . . . Machines Sabotaged . | . . . . . Garrisons Compromised . | . . . . . Overloaded Fab Kills . | . . . . . Fab Network Shutdowns . | . . . . . Hacking | -11 -10 -10 -10 -9 --------- Run | Scr Mat Min Exi Min Machines Accessed 7 | . 2 . 5 . Terminals 1 | . 1 . . . Fabricators . | . . . . . Repair Stations . | . . . . . Recycling Units 1 | . 1 . . . Scanalyzers . | . . . . . Garrison Access . | . . . . . Total Hacks 57 | . 7 . 50 . Successful 54 | . 4 . 50 . Failed 3 | . 3 . . . Catastrophic . | . . . . . Database Lockouts . | . . . . . Manual 12 | . 1 . 11 . Terminals 2 | . 2 . . . Fabricators . | . . . . . Repair Stations . | . . . . . Recycling Units 5 | . 5 . . . Scanalyzers . | . . . . . Garrison Access . | . . . . . Terminal Hacks 52 | . 2 . 50 . Record 49 | . . . 49 . Prototype ID Bank 1 | . 1 . . . Zone Layout 1 | . 1 . . . EX-Prototype ID Bank 1 | . . . 1 . Fabricator Hacks . | . . . . . Repair Station Hacks . | . . . . . Recycling Unit Hacks 2 | . 2 . . . Report Inventory 1 | . 1 . . . Retrieve Matter 1 | . 1 . . . Scanalyzer . | . . . . . Garrison Access Hacks . | . . . . . Unauthorized Hacks . | . . . . . Terminals . | . . . . . Fabricators . | . . . . . Repair Stations . | . . . . . Recycling Units . | . . . . . Scanalyzers . | . . . . . Garrison Access . | . . . . . Data Cores Recovered . | . . . . . Used . | . . . . . Hacking Detections 2 | . 2 . . . Full Trace Events 1 | . 1 . . . Feedback Events . | . . . . . Feedback Blocked . | . . . . . Robot Schematics Acquired . | . . . . . Robots Built . | . . . . . Matter . | . . . . . Time . | . . . . . Total Robot Build Rating . | . . . . . Part Schematics Acquired . | . . . . . Parts Built . | . . . . . Matter . | . . . . . Time . | . . . . . Total Part Build Rating . | . . . . . Parts Repaired . | . . . . . Time . | . . . . . Parts Recycled . | . . . . . Recycled Matter . | . . . . . Retrieved Matter . | . . . . . Retrieved Components . | . . . . . Parts Scanalyzed . | . . . . . Part Schematics Acquired . | . . . . . Parts Damaged . | . . . . . Bothacking | -11 -10 -10 -10 -9 ------------ Run | Scr Mat Min Exi Min Used RIF Installer . | . . . . . Robots Hacked . | . . . . . Non-combat . | . . . . . Combat . | . . . . . Robot Hacks Applied . | . . . . . Relay Couplers Released . | . . . . . Robots Rewired . | . . . . . Allies Hacked . | . . . . . Hacks Repelled . | . . . . . Allies | -11 -10 -10 -10 -9 -------- Run | Scr Mat Min Exi Min Total Allies . | . . . . . Largest Group . | . . . . . Highest-Rated Group . | . . . . . Highest-Rated Ally . | . . . . . Total Orders . | . . . . . Ally Attacks . | . . . . . Total Damage . | . . . . . Kills . | . . . . . Allies Corrupted . | . . . . . Allies Melted . | . . . . . Intel | -11 -10 -10 -10 -9 ------- Run | Scr Mat Min Exi Min Robot Analysis Total . | . . . . . Derelict Logs Recovered 1 | . . 1 . . Drone Launches . | . . . . . Drone Recoveries . | . . . . . Exploration | -11 -10 -10 -10 -9 ------------- Run | Scr Mat Min Exi Min Turns Passed 1485 | 57 191 156 1049 32 Spaces Moved 1327 | 50 149 145 979 4 Core 1 | 1 . . . . Treads . | . . . . . Legs 1 | . . . . 1 Wheels 1325 | 49 149 145 979 3 Hover . | . . . . . Flight . | . . . . . Fastest Speed 50 | 50 90 90 90 100 Average Speed 100 | 87 90 90 104 130 Slowest Speed 210 | 90 90 90 130 210 Overloaded Moves . | . . . . . Propulsion Burnouts . | . . . . . Robots Hopped . | . . . . . Cave-ins Triggered . | . . . . . Exploration Rate (%) 31 | 4 24 28 95 4 Regions Visited 4 Branch Regions 3 Pre-discovered Areas 2 | . . 1 1 . Known Exits Taken . | . . . . . Unknown Exits Taken 4 | 1 1 1 1 . Scrap Searched . | . . . . . Spaces Dug . | . . . . . Terrain Destroyed 34 | . . . . 34 Melee . | . . . . . Projectile 1 | . . . . 1 AOE 33 | . . . . 33 Terrain Rammed . | . . . . . Walls Destroyed . | . . . . . Machines Disabled . | . . . . . Actions | -11 -10 -10 -10 -9 --------- Run | Scr Mat Min Exi Min Total 1428 | 60 171 170 1004 23 Wait 32 | . 3 26 2 1 Move 1323 | 49 148 144 978 4 Hop . | . . . . . Pick Up 20 | 5 2 . 13 . Fast Attach 9 | 5 1 . 3 . Attach 6 | 1 . . . 5 Detach 5 | . . . 2 3 Swap 1 | . . . 1 . Drop 5 | . . . 5 . Fire 23 | . 17 . . 6 Melee 4 | . . . . 4 Ram . | . . . . . Kick . | . . . . . Crush . | . . . . . Escape Stasis . | . . . . . Rewire . | . . . . . Trap . | . . . . . Miscellaneous . | . . . . . Route ------- -11/Scrapyard -10/Materials -10/Mines -10/Exiles (discovered 2 exits: [*Min x2]) -9/Mines History --------- Turn | Location | Event 19 | -11/Scrapyard | Discovered new exit (range 15) 58 | -11/Scrapyard | Entered Materials 208 | -10/Materials | Met 8R-AWN 224 | -10/Materials | Discovered new exit (range 6) 249 | -10/Materials | Entered Mines 250 | -10/Mines | Followed 8R-AWN into the Mines 270 | -10/Mines | Met a Derelict bent on vengeance 310 | -10/Mines | Build established: Mutant 327 | -10/Mines | Learned location of Storage (-7) 382 | -10/Mines | Discovered new exit (range 5) 405 | -10/Mines | Entered Exiles 425 | -10/Exiles | Discovered new exit (range 15) 456 | -10/Exiles | Welcomed by 8R-AWN 474 | -10/Exiles | Met EX-HEX 541 | -10/Exiles | Met EX-DEC 596 | -10/Exiles | Met EX-BIN 727 | -10/Exiles | Learned location of Zion (-7) 823 | -10/Exiles | Discovered new exit (range 10) 926 | -10/Exiles | Visited The Gauntlet 1091 | -10/Exiles | Build established: Hauler-Mutant 1261 | -10/Exiles | Aligned with FarCom system 1262 | -10/Exiles | Given EX-Vault access code 1292 | -10/Exiles | Opened EX-Vault 1296 | -10/Exiles | Found Prototype Slashing Weapon 1305 | -10/Exiles | Found Prototype Energy Cannon 1305 | -10/Exiles | Identified Firepult 1325 | -10/Exiles | Found Prototype Storage 1325 | -10/Exiles | Identified Lightpack 2.0 1348 | -10/Exiles | Identified Longsword +1 1376 | -10/Exiles | Warned to stay clear of 0b10 Research branches 1454 | -10/Exiles | Stole three prototypes: Lightpack 2.0, Firepult, Longsword +1 1454 | -10/Exiles | Entered Mines 1455 | -9/Mines | Assembled infested the area 1479 | -9/Mines | Core integrity fell below 50% 1481 | -9/Mines | Core integrity fell below 20% 1486 | -9/Mines | Destroyed by D-53 Grenadier with Mini Grenade Launcher Last Messages --------------- 01476_ Overheating: Ion Engine damaged (-9). 01477_ as-38080 suffers critical hit. 01477_ Destroyed Asb. Blade. 01478_ Overheating: Matter decay (-30). 01479_ Overheating: Matter decay (-21). 01479_ as-41899 destroyed. 01479_ as-32787 destroyed. 01479_ Destroyed Asb. Hover Unit. 01480_ Overheating: Core damaged (-35). 01480_ Ion Engine destroyed. 01481_ Destroyed Asb. Blade. 01481_ as-68340 destroyed. 01483_ Overheating: Assault Rifle damaged (-3). 01483_ as-35806 destroyed. 01483_ as-51261 destroyed. 01483_ U-05 Engineer lays Concrete. 01483_ as-38080 destroyed. 01485_ as-78881 destroyed. 01486_ The unstable cave ceiling collapses. [Achievement: This Is Interesting...] Map ----- +----------------------------------------------------+ | | | | | | | | | | | | | | | | | | | | | | | | | | | | | | | | | | | | | | | | | | | ?????????????????????????????????? | | ?????????????????????????????????? | | ??????#######????????????????????? | | ??????# % # #??????????????????? | | ??????# @ #??????????????????? | | ??????# % #?????????????????? | | ??????# #?????????????????? | | ??????## #???????????????? | | ??????? ?????????????? | | ??????? d ???????????? | | ??????## ud% ??????????? | | ???????## ##??????????? | | ????????# ##???????????? | | ????????? a ##????????????? | | ?????????# ###?????????????? | | ?????????? # ##???????????????? | | ?????????? #????????????????? | | ?????????? % % ##????????????????? | | ??????????< #?????????????????? | | ?????????? ##?????????????????? | | ?????????? ##???????????????????? | | ?????????? #?????????????????????? | | ?????????????????????????????????? | | ?????????????????????????????????? | | ?????????????????????????????????? | | ?????????????????????????????????? | | ?????????????????????????????????? | | ?????????????????????????????????? | | ?????????????????????????????????? | +----------------------------------------------------+ Best States ------------- Heat Dissipation 25 Energy Generation 10 Energy Capacity 250 Matter Stores 300 Matter Capacity 300 Sight Range 16 Robot Scan Range 10 Terrain Scan Density 10 Evasion (%) 44 Item Schematics ----------------- None Robot Schematics ------------------ None Fabricated ------------ Nothing Alien Tech Used ----------------- None Achievements -------------- Quick And Dirty This Is Interesting... Challenges ------------ None Game ------ Seed IonGodPerforator Manual? 0 Play Time 00:36:38 Cumulative 56.0 hours Start 2022.02.28 @ 14:40:55 End 2022.02.28 @ 20:06:54 Sessions 3 Manual Loads 0 Difficulty Rogue Special Mode None Game No. 54 Rogue 54 Adventurer 0 Explorer 0 Win Type - Total 0 Types 0/0/0/0/0/0/0/0/0 Lore% 29 Gallery% 43 Achievement% 24 Wizard Run 0 Options --------- ASCII 1 Keyboard 1 Movement Numpad Keybinds 0 Fullscreen 2 Font 18/SmallcapsGlow Map View 76x50 Tactical HUD 1 Map Filters NONE Filters NONE Steam 1 RUN: db89ab31-53b8-4a1e-93e1-033545c35a35